bitfinex-derivatives/quotes_ETHF0:USTF0_20210703
["timestamp","ask_amount","ask_price","bid_price","bid_amount"]
[1625322975025,3.20527,2228.4,2227.8,6.89141648]
[1625322975126,9.28841286,2228.7,2227.8,6.89141648]
[1625322975478,9.28703088,2229.0,2228.1,1.32348907]
[1625322975779,9.28703088,2229.0,2228.9,2.20527]
[1625322975881,9.28703088,2229.0,2228.9,4.80697]
[1625322975985,26.34227447,2229.2,2228.9,4.80697]
[1625322976185,11.49107447,2229.2,2228.9,4.80697]
[1625322976287,1.0,2229.1,2228.9,4.80697]
[1625322976488,6.83668499,2229.1,2228.9,4.80697]
[1625322977100,1.0,2229.1,2228.9,4.80697]
[1625322977399,6.83667169,2229.1,2228.9,4.80697]
[1625322977853,2.20527,2229.0,2228.9,4.80697]
[1625322977955,3.20527,2229.0,2228.9,4.80697]
[1625322979156,3.20527,2229.0,2228.9,2.6017]
[1625322979507,1.0,2229.0,2228.9,2.6017]
[1625322979806,1.0,2229.0,2228.9,4.80697]
[1625322980007,1.0,2229.0,2228.9,2.6017]
[1625322980207,1.0,2229.0,2228.6,2.20527]
[1625322981912,2.20527,2228.7,2228.6,2.20527]
[1625322983717,1.0,2229.0,2228.6,2.20527]
[1625322983969,2.20527,2228.7,2228.6,2.20527]
[1625322984872,3.20527,2228.7,2228.6,2.20527]
[1625322985221,1.0,2228.7,2228.6,2.20527]
[1625322991007,1.0,2228.7,2228.6,4.90197]
[1625323002785,2.20527,2229.1,2228.6,4.90197]
[1625323002927,5.83358603,2229.3,2228.6,4.90197]
[1625323002985,5.83178307,2229.6,2228.6,6.22399809]
[1625323003091,6.83178307,2229.6,2228.6,6.22399809]
[1625323003294,6.83178307,2229.6,2228.7,16.207383]
[1625323003544,1.0,2229.6,2228.7,17.52908332]
[1625323003895,5.83135394,2229.7,2228.7,17.52908332]
[1625323004000,5.83135394,2229.7,2228.7,25.52908332]
[1625323004147,2.20527,2229.9,2229.6,4.41054]
[1625323004749,5.83045059,2230.1,2229.6,4.41054]
[1625323005255,3.17773168,2230.4,2229.6,4.41054]
[1625323005398,3.17773168,2230.4,2229.7,19.92846]
[1625323005902,3.1774668,2230.5,2229.7,19.92846]
[1625323006201,3.1774668,2230.5,2230.4,7.87934]
[1625323006902,6.82526452,2230.6,2230.4,7.87934]
[1625323007353,1.32267544,2230.5,2230.4,7.87934]
[1625323007655,4.17606858,2230.6,2230.4,7.87934]
[1625323007754,3.17606858,2230.6,2230.4,7.87934]
[1625323008507,1.32259953,2230.6,2230.4,7.87934]
[1625323008757,2.32259953,2230.6,2230.4,7.87934]
[1625323008861,3.52669577,2230.8,2230.4,7.87934]
[1625323009770,2.20527,2230.8,2230.4,7.87934]
[1625323009870,1.0,2230.7,2230.4,7.87934]
[1625323011175,2.20527,2230.8,2230.4,7.87934]
[1625323011277,2.32013082,2231.1,2230.4,7.87934]
[1625323011627,1.0,2231.1,2230.5,16.366233]
[1625323012225,1.0,2231.1,2231.0,4.41054]
[1625323013575,2.20527,2231.3,2231.0,4.41054]
[1625323014130,1.0,2231.2,2231.0,4.41054]
[1625323014227,2.20527,2231.3,2231.0,4.41054]
[1625323015440,3.20527,2231.3,2231.0,4.41054]
[1625323016144,2.20527,2231.3,2231.0,4.41054]
[1625323016593,2.20527,2231.3,2231.0,6.73224]
[1625323019898,1.0,2231.8,2231.1,16.186163]
[1625323019999,1.0,2231.8,2231.1,24.186163]
[1625323020104,1.3156016,2232.1,2231.1,24.186163]
[1625323020211,1.3156016,2232.1,2231.1,29.186163]
[1625323020304,1.3156016,2232.1,2232.0,4.41054]
[1625323020404,1.3156016,2232.1,2232.0,7.19484]
[1625323020555,16.32127,2232.4,2232.0,7.19484]
[1625323020653,16.32127,2232.4,2232.0,23.328491]
[1625323021260,3.20527,2232.6,2232.0,23.328491]
[1625323021261,1.0,2232.6,2232.0,23.328491]
[1625323021411,2.63021527,2233.2,2232.0,32.328491]
[1625323021829,2.62948958,2233.7,2232.0,32.328491]
[1625323022272,2.20527,2233.6,2233.5,2.20527]
[1625323022376,2.20527,2233.6,2233.3,2.20527]
[1625323022481,2.20527,2233.6,2232.0,17.133651]
[1625323022681,2.3485,2233.5,2232.0,1.0]
[1625323023484,2.3485,2233.5,2232.1,16.349314]
[1625323023584,2.3485,2233.5,2232.2,1.0]
[1625323023681,2.20527,2233.6,2232.2,1.0]
[1625323023779,2.20527,2233.6,2232.2,9.0]
[1625323024029,2.20527,2233.6,2232.4,1.0]
[1625323024280,2.20527,2233.6,2233.1,2.20527]
[1625323025643,2.20527,2233.6,2232.2,1.0]
[1625323025743,4.72877,2233.6,2232.2,1.0]
[1625323025995,4.72877,2233.6,2232.2,9.0]
[1625323026297,4.72877,2233.6,2233.1,2.20527]
[1625323027300,4.72877,2233.6,2233.1,3.20527]
[1625323027400,4.72877,2233.6,2233.1,2.20527]
[1625323028352,2.20527,2233.2,2233.1,2.20527]
[1625323028903,2.20527,2233.2,2232.9,2.20527]
[1625323030361,4.41054,2233.2,2232.9,2.20527]
[1625323034275,4.41054,2233.2,2232.7,2.20527]
[1625323035944,4.41054,2233.2,2231.9,1.0]
[1625323036132,4.41054,2233.2,2231.4,1.0]
[1625323036233,9.41054,2233.2,2231.4,1.0]
[1625323036332,2.20527,2232.0,2231.9,2.20527]
[1625323036432,5.07927,2232.0,2231.9,2.20527]
[1625323037793,2.20527,2232.0,2231.9,2.20527]
[1625323038395,2.20527,2232.0,2231.7,2.20527]
[1625323039801,1.20527,2232.0,2231.7,2.20527]
[1625323040004,1.0,2232.7,2231.7,2.20527]
[1625323040203,1.0,2232.7,2231.8,16.372772]
[1625323040451,2.20527,2232.5,2232.4,2.20527]
[1625323040803,3.20527,2232.5,2231.7,16.156827]
[1625323041004,3.20527,2232.5,2230.9,8.0]
[1625323041258,3.20527,2232.5,2230.6,5.0]
[1625323041356,3.20527,2232.5,2230.6,8.0]
[1625323041612,3.20527,2232.5,2230.7,16.207472]
[1625323042359,3.20527,2232.5,2232.2,2.20527]
[1625323043518,3.20527,2232.5,2232.0,2.20527]
[1625323044380,3.20527,2232.5,2232.4,2.20527]
[1625323044630,3.20527,2232.5,2232.0,2.20527]
[1625323045530,5.51567,2232.5,2232.0,2.20527]
[1625323046383,2.20527,2232.1,2232.0,2.20527]
[1625323046491,3.20527,2232.1,2232.0,2.20527]
[1625323049348,2.20527,2232.1,2232.0,2.20527]
[1625323049795,3.20527,2232.5,2232.0,2.20527]
[1625323049897,3.20527,2232.5,2232.0,4.52527]
[1625323050455,3.20527,2232.5,2232.4,2.20527]
[1625323052212,3.20527,2232.5,2232.0,4.52527]
[1625323052412,3.20527,2232.5,2232.3,2.20527]
[1625323055774,2.20527,2232.5,2232.3,2.20527]
[1625323056475,2.20527,2232.5,2232.4,2.20527]
[1625323059589,3.20527,2232.8,2232.4,2.20527]
[1625323060539,3.20527,2232.8,2232.7,2.20527]
[1625323060642,3.20527,2232.8,2232.7,5.53637]
[1625323061190,2.20527,2232.8,2232.7,5.53637]
[1625323062395,2.20527,2233.1,2232.7,5.53637]
[1625323062645,2.20527,2233.1,2233.0,2.20527]
[1625323062948,2.20527,2233.1,2233.0,18.450737]
[1625323063911,30.1185,2233.5,2233.0,18.450737]
[1625323064012,15.4951,2233.5,2233.0,18.450737]
[1625323064113,15.5347,2234.5,2233.0,18.450737]
[1625323064565,2.20527,2233.9,2233.8,2.20527]
[1625323064666,3.20527,2233.9,2233.8,5.46927]
[1625323067172,2.20527,2233.9,2233.8,5.46927]
[1625323067476,3.20527,2233.9,2233.8,5.46927]
[1625323068281,3.20527,2233.9,2233.8,3.264]
[1625323068379,3.20527,2233.9,2233.6,2.20527]
[1625323068477,5.80977,2233.9,2233.6,2.20527]
[1625323068627,3.20527,2233.7,2233.6,2.20527]
[1625323068828,2.20527,2233.7,2233.6,2.20527]
[1625323069329,3.20527,2233.7,2233.6,2.20527]
[1625323070081,2.20527,2233.7,2233.6,2.20527]
[1625323070181,3.20527,2233.7,2233.6,2.20527]
[1625323071294,1.0,2234.2,2233.6,2.20527]
[1625323071496,1.0,2234.2,2233.6,4.50927]
[1625323072651,1.0,2234.2,2234.1,4.41054]
[1625323074349,1.0,2234.2,2234.1,7.91514]
[1625323075603,1.0,2234.2,2232.6,3.1246]
[1625323075702,4.5449,2234.2,2232.6,3.1246]
[1625323076658,2.20527,2233.6,2233.5,2.20527]
[1625323076759,3.20527,2233.6,2233.5,2.20527]
[1625323077922,6.29917,2233.6,2232.3,14.0293]
[1625323078219,6.29917,2233.6,2231.5,1.1]
[1625323078521,6.29917,2233.6,2232.4,16.14934]
[1625323078724,6.29917,2233.6,2231.8,2.8775]
[1625323078924,6.29917,2233.6,2231.9,16.354212]
[1625323079374,6.29917,2233.6,2231.6,16.268174]
[1625323079729,6.29917,2233.6,2232.0,16.168978]
[1625323080031,6.29917,2233.6,2231.6,16.340286]
[1625323080278,6.29917,2233.6,2232.1,16.261071]
[1625323080532,6.29917,2233.6,2232.0,3.3814]
[1625323080629,6.29917,2233.6,2231.6,16.375027]
[1625323080880,6.29917,2233.6,2231.5,9.1]
[1625323081433,6.29917,2233.6,2231.6,16.160672]
[1625323082688,2.20527,2233.1,2232.9,2.20527]
[1625323082790,1.0,2233.0,2232.9,2.20527]
[1625323084744,3.20527,2233.0,2232.9,2.20527]
[1625323085297,3.20527,2233.0,2232.7,2.20527]
[1625323086700,2.20527,2232.8,2232.7,2.20527]
[1625323086851,3.20527,2232.8,2232.7,2.20527]
[1625323088509,3.20527,2232.8,2230.5,1.1]
[1625323088712,3.20527,2232.8,2232.5,2.20527]
[1625323088960,3.20527,2232.8,2232.3,2.20527]
[1625323090776,2.20527,2232.4,2232.3,2.20527]
[1625323090876,3.20527,2232.4,2232.3,2.20527]
[1625323093388,3.20527,2232.4,2230.8,14.6166]
[1625323093687,3.20527,2232.4,2230.4,8.0]
[1625323093786,3.20527,2232.4,2230.5,0.19090123]
[1625323093986,3.20527,2232.4,2230.5,16.34881723]
[1625323094186,3.20527,2232.4,2230.5,16.157916]
[1625323094787,2.20527,2231.8,2231.7,2.20527]
[1625323094940,2.20527,2231.8,2230.3,16.350917]
[1625323094941,3.20527,2231.8,2230.3,16.350917]
[1625323095088,3.20527,2231.8,2230.2,2.62298314]
[1625323095442,3.20527,2231.8,2229.9,2.62513515]
[1625323095592,8.20527,2231.8,2229.9,2.62513515]
[1625323095689,8.20527,2231.8,2230.3,16.256447]
[1625323095941,8.20527,2231.8,2230.1,16.171986]
[1625323096044,8.20527,2231.8,2229.7,15.1111]
[1625323096290,8.20527,2231.8,2229.2,2.63005925]
[1625323096640,8.20527,2231.8,2229.3,16.229878]
[1625323096793,3.20527,2230.7,2230.6,2.20527]
[1625323097390,3.20527,2230.7,2230.4,2.20527]
[1625323098808,3.20527,2230.5,2230.4,2.20527]
[1625323098909,3.20527,2230.5,2230.0,2.20527]
[1625323100309,3.20527,2230.5,2228.9,14.5393]
[1625323100563,6.20997,2230.5,2228.9,14.5393]
[1625323100712,6.20997,2230.5,2228.8,2.63517941]
[1625323100812,2.20527,2229.6,2229.4,2.20527]
[1625323100911,1.0,2229.5,2229.4,2.20527]
[1625323101162,1.0,2229.5,2229.1,2.20527]
[1625323101817,2.20527,2229.8,2229.1,2.20527]
[1625323101965,1.49527,2229.8,2229.1,2.20527]
[1625323102123,1.49527,2229.8,2229.2,16.343648]
[1625323102465,1.49527,2229.8,2229.1,2.20527]
[1625323102819,1.49527,2229.8,2229.7,4.41054]
[1625323102968,2.49527,2229.8,2229.7,6.83574]
[1625323103168,1.49527,2229.8,2229.7,6.83574]
[1625323104119,2.49527,2229.8,2229.7,6.83574]
[1625323109303,2.49527,2229.8,2229.1,1.0]
[1625323110856,2.49527,2229.8,2229.5,2.20527]
[1625323111208,2.49527,2229.8,2229.5,4.86167]
[1625323112870,4.70054,2229.8,2229.5,7.06694]
[1625323115025,4.70054,2229.8,2229.5,2.6564]
[1625323115933,1.0,2229.8,2229.5,2.6564]
[1625323116033,1.0,2229.7,2229.5,2.6564]
[1625323116133,14.2637,2230.5,2229.5,2.6564]
[1625323116235,1.0,2230.4,2229.1,1.0]
[1625323116886,2.20527,2230.2,2230.1,2.20527]
[1625323116988,3.20527,2230.2,2230.1,5.59957]
[1625323117886,2.20527,2230.2,2230.1,5.59957]
[1625323118386,15.2637,2230.5,2230.1,5.59957]
[1625323118937,3.20527,2230.2,2230.1,5.59957]
[1625323120938,2.20527,2230.2,2230.1,5.59957]
[1625323121343,3.20527,2230.2,2230.1,5.59957]
[1625323122641,2.20527,2230.2,2230.1,5.59957]
[1625323123776,3.20527,2230.2,2230.1,5.59957]
[1625323125088,2.20527,2230.2,2230.1,5.59957]
[1625323126389,14.2637,2230.5,2230.1,5.59957]
[1625323126490,1.0,2231.1,2230.1,5.59957]
[1625323126941,3.20527,2231.1,2231.0,2.20527]
[1625323127043,3.20527,2231.1,2231.0,5.90227]
[1625323127453,3.20527,2231.1,2231.0,3.697]
[1625323128952,5.41054,2231.1,2231.0,3.697]
[1625323130303,5.41054,2231.1,2230.5,2.20527]
[1625323130958,4.41054,2230.6,2230.3,2.20527]
[1625323131104,1.0,2230.5,2230.3,2.20527]
[1625323131205,1.0,2230.5,2230.1,1.0]
[1625323133008,1.0,2230.5,2230.3,2.20527]
[1625323133310,1.0,2230.5,2230.1,1.0]
[1625323133414,4.0093,2230.5,2230.1,1.0]
[1625323134980,2.20527,2230.2,2230.1,1.0]
[1625323135080,3.20527,2230.2,2230.1,1.0]
[1625323152759,2.20527,2230.2,2230.1,1.0]
[1625323152908,2.20527,2230.2,2230.1,4.4608]
[1625323154918,3.20527,2230.2,2230.1,4.4608]
[1625323155068,5.72027,2230.2,2230.1,1.0]
[1625323160825,4.72027,2230.2,2230.1,1.0]
[1625323160973,2.20527,2230.2,2230.1,1.0]
[1625323162074,2.20527,2230.2,2230.1,4.0533]
[1625323169222,2.20527,2230.2,2230.1,6.25857]
[1625323171226,2.20527,2230.2,2230.1,8.46384]
[1625323174546,2.20527,2230.2,2230.1,4.0533]
[1625323174547,3.20527,2230.2,2230.1,4.0533]
[1625323183475,2.20527,2230.2,2230.1,4.0533]
[1625323184776,3.20527,2230.2,2230.1,4.0533]
[1625323215180,6.61437,2230.2,2230.1,0.2814]
[1625323215532,6.61437,2230.2,2229.7,1.85587356]
[1625323215634,3.20527,2229.8,2229.7,1.85587356]
[1625323215733,3.20527,2229.8,2229.4,3.44649815]
[1625323215734,3.20527,2229.8,2229.4,1.85604569]
[1625323216488,3.20527,2229.8,2229.5,1.85607435]
[1625323217593,2.20527,2229.6,2229.5,1.85607435]
[1625323219446,2.20527,2229.6,2229.4,1.8565478]
[1625323222552,1.0,2229.5,2229.4,1.8565478]
[1625323222802,1.0,2229.5,2229.3,1.85653707]
[1625323223112,1.0,2229.5,2229.4,1.85630097]
[1625323223563,1.0,2229.5,2229.3,1.85629592]
[1625323223661,2.20527,2229.4,2229.3,1.85629592]
[1625323223862,2.20527,2229.4,2229.3,2.6518346]
[1625323224562,2.20527,2229.4,2229.2,2.65184066]
[1625323225226,2.20527,2229.4,2229.3,1.8561098]
[1625323228993,3.20527,2229.4,2229.3,1.8561098]
[1625323229805,3.20527,2229.4,2229.2,1.85579994]
[1625323229901,6.53577,2229.4,2229.2,1.85579994]
[1625323230460,6.53577,2229.4,2229.1,1.0]
[1625323231516,7.43187,2229.4,2229.1,1.0]
[1625323231718,2.20527,2229.2,2229.1,1.0]
[1625323231821,3.20527,2229.2,2229.1,1.0]
[1625323239152,3.20527,2229.2,2229.1,4.5052]
[1625323239356,2.20527,2229.2,2229.1,4.5052]
[1625323239804,3.20527,2229.2,2229.1,4.5052]
[1625323261054,1.31775854,2229.8,2229.1,4.5052]
[1625323261711,1.31906175,2230.3,2229.1,4.5052]
[1625323261860,2.20527,2229.4,2229.3,2.20527]
[1625323263969,4.41054,2229.4,2229.3,2.20527]
[1625323265478,7.92904,2229.4,2229.1,1.0]
[1625323272557,12.92904,2229.4,2229.1,1.0]
[1625323273355,14.24763976,2229.4,2229.1,1.0]
[1625323273807,9.24763976,2229.4,2229.1,1.0]
[1625323274007,9.24763976,2229.4,2229.1,3.3136]
[1625323274408,7.92904,2229.4,2229.1,3.3136]
[1625323277366,5.0,2229.3,2229.1,3.3136]
[1625323277969,5.0,2229.3,2229.1,1.0]
[1625323279074,4.41054,2229.4,2229.1,1.0]
[1625323279625,9.41054,2229.4,2229.1,1.0]
[1625323279828,4.41054,2229.4,2229.1,1.0]
[1625323280035,4.41054,2229.4,2229.1,0.0001]
[1625323280234,5.0,2229.3,2229.1,0.0001]
[1625323281640,5.729539,2229.4,2229.1,0.0001]
[1625323281739,4.41054,2229.4,2229.1,0.0001]
[1625323282293,4.41054,2229.4,2229.1,2.7798]
[1625323288766,9.41054,2229.4,2229.1,2.7798]
[1625323289068,9.41054,2229.4,2229.1,0.0001]
[1625323291224,1.3203003,2229.3,2229.1,0.0001]
[1625323291574,1.32008254,2229.2,2229.1,0.0001]
[1625323292122,7.63863903,2229.2,2229.1,0.0001]
[1625323292522,8.42898937,2229.2,2229.1,0.0001]
[1625323293825,5.0,2229.2,2229.1,0.0001]
[1625323299356,5.0,2229.2,2228.1,1.0]
[1625323299357,9.19696928,2229.2,2228.1,1.0]
[1625323299556,5.0,2229.2,2228.1,1.0]
[1625323300160,1.31012383,2228.4,2228.1,1.0]
[1625323300258,4.41054,2228.2,2228.1,1.0]
[1625323300408,9.41054,2228.2,2228.1,1.0]
[1625323302312,4.41054,2228.2,2228.1,1.0]
[1625323306181,9.41054,2228.2,2228.1,1.0]
[1625323306632,4.41054,2228.2,2228.1,1.0]
[1625323306782,9.41054,2228.2,2228.1,1.0]
[1625323310797,9.41054,2228.2,2228.1,0.0001]
[1625323314408,4.41054,2228.2,2228.1,0.0001]
[1625323314864,9.41054,2228.2,2228.1,0.0001]
[1625323316467,4.41054,2228.2,2228.1,0.0001]
[1625323317069,9.41054,2228.2,2228.1,0.0001]
[1625323317168,12.72424,2228.2,2228.1,0.0001]
[1625323319473,7.72424,2228.2,2228.1,0.0001]
[1625323319683,12.72424,2228.2,2228.1,0.0001]
[1625323319891,15.34732929,2228.2,2227.1,1.0]
[1625323319974,15.34732929,2228.2,2226.1,1.0]
[1625323320378,4.41054,2226.2,2226.1,1.0]
[1625323320525,4.41054,2226.2,2226.1,0.538]
[1625323320676,7.54094,2226.2,2226.1,0.538]
[1625323320874,6.54094,2226.2,2226.1,0.538]
[1625323320977,7.54094,2226.2,2226.1,0.538]
[1625323321676,6.54094,2226.2,2226.1,0.538]
[1625323321925,7.54094,2226.2,2226.1,0.538]
[1625323322629,6.54094,2226.2,2226.1,0.538]
[1625323322727,7.54094,2226.2,2226.1,0.538]
[1625323323477,6.54094,2226.2,2226.1,0.538]
[1625323323878,7.54094,2226.2,2226.1,0.538]
[1625323323978,6.54094,2226.2,2226.1,0.538]
[1625323326990,7.54094,2226.2,2226.1,0.538]
[1625323327142,6.54094,2226.2,2226.1,0.538]
[1625323342346,1.0,2226.6,2226.1,0.538]
[1625323342443,14.3904,2227.2,2226.1,0.538]
[1625323342549,2.20527,2227.1,2227.0,2.20527]
[1625323345810,1.30380952,2228.6,2227.0,2.20527]
[1625323346013,1.30380952,2228.6,2227.0,4.51977]
[1625323346112,16.63823332,2228.7,2227.0,4.51977]
[1625323346113,14.8129,2228.7,2227.0,4.51977]
[1625323346562,2.20527,2227.8,2227.7,2.20527]
[1625323346765,2.20527,2227.8,2227.7,5.84447]
[1625323347572,1.0,2228.6,2227.7,5.84447]
[1625323348626,2.20527,2228.5,2228.4,2.20527]
[1625323349378,3.20527,2228.5,2228.4,2.20527]
[1625323349829,3.20527,2228.5,2227.7,2.20527]
[1625323350581,2.20527,2227.8,2227.7,2.20527]
[1625323350683,2.4459,2228.6,2227.7,2.20527]
[1625323350830,1.0,2228.7,2227.7,2.20527]
[1625323352632,2.20527,2227.8,2227.7,2.20527]
[1625323353584,5.03067,2227.8,2227.7,2.20527]
[1625323354488,6.03067,2227.8,2227.7,2.20527]
[1625323354640,6.03067,2227.8,2227.0,2.20527]
[1625323355091,6.03067,2227.8,2226.8,2.20527]
[1625323356642,2.20527,2227.3,2227.2,2.20527]
[1625323357698,2.20527,2227.3,2226.1,0.538]
[1625323357699,5.80387,2227.3,2226.1,0.538]
[1625323358001,1.0,2227.1,2226.1,0.538]
[1625323358709,2.20527,2226.3,2226.2,2.20527]
[1625323359360,2.20527,2226.3,2226.1,0.538]
[1625323359918,3.20527,2226.3,2226.1,0.538]
[1625323361872,2.20527,2226.3,2226.1,0.538]
[1625323361972,3.20527,2226.3,2226.1,0.538]
[1625323365701,2.20527,2226.3,2226.1,0.538]
[1625323366000,1.0,2226.2,2226.1,0.538]
[1625323366701,2.20527,2226.3,2226.1,0.538]
[1625323370328,3.20527,2226.3,2226.1,0.538]
[1625323370428,2.20527,2226.3,2226.1,0.538]
[1625323370528,3.20527,2226.3,2226.1,0.538]
[1625323372281,2.20527,2226.3,2226.1,0.538]
[1625323373740,3.20527,2226.3,2226.1,0.538]
[1625323381793,6.76127,2226.3,2226.1,0.538]
[1625323384350,5.76127,2226.3,2226.1,0.538]
[1625323384444,1.0,2226.2,2226.1,0.538]
[1625323395481,2.20527,2226.3,2226.1,0.538]
[1625323395580,2.20527,2226.3,2226.1,3.0956]
[1625323395681,1.0,2226.9,2226.1,3.0956]
[1625323395781,1.0,2227.0,2226.1,3.0956]
[1625323396936,2.20527,2227.1,2226.9,2.20527]
[1625323397088,2.20527,2227.1,2226.9,5.81207]
[1625323398094,3.20527,2227.1,2226.9,5.81207]
[1625323398990,2.20527,2227.0,2226.9,5.81207]
[1625323399391,2.20527,2227.0,2226.9,3.6068]
[1625323400447,3.20527,2227.0,2226.9,3.6068]
[1625323401147,2.20527,2227.0,2226.9,3.6068]
[1625323402202,2.20527,2227.0,2226.7,2.20527]
[1625323405458,3.20527,2227.0,2226.7,2.20527]
[1625323405660,5.76857,2227.0,2226.7,2.20527]
[1625323406011,5.76857,2227.0,2226.1,0.538]
[1625323406211,7.0788138,2227.0,2226.1,0.538]
[1625323406619,1.31018257,2226.9,2226.1,0.538]
[1625323406714,1.0,2226.8,2226.1,0.538]
[1625323407018,2.20527,2226.5,2226.4,2.20527]
[1625323407119,3.20527,2226.5,2226.4,2.20527]
[1625323408984,5.41054,2226.5,2226.4,2.20527]
[1625323409134,8.09804,2226.5,2226.4,2.20527]
[1625323409836,8.09804,2226.5,2226.1,0.538]
[1625323411037,2.20527,2226.2,2226.1,0.538]
[1625323413046,1.31127604,2226.8,2226.1,0.538]
[1625323413146,1.31127604,2226.8,2226.1,3.6465]
[1625323413473,3.51729015,2227.1,2226.1,3.6465]
[1625323413564,1.31202015,2227.1,2226.1,3.6465]
[1625323413760,1.31212508,2227.2,2226.1,3.6465]
[1625323415114,3.51739508,2227.2,2226.1,3.6465]
[1625323415214,4.51739508,2227.2,2226.1,3.6465]
[1625323415364,3.51739508,2227.2,2226.1,3.6465]
[1625323415712,2.20527,2227.2,2226.1,3.6465]
[1625323417078,2.20527,2227.2,2227.1,2.20527]
[1625323435248,1.0,2227.4,2227.1,2.20527]
[1625323437253,2.20527,2227.2,2227.1,2.20527]
[1625323439319,2.20527,2227.2,2226.9,4.50217]
[1625323439419,2.20527,2227.2,2226.1,0.538]
[1625323439568,5.21697,2227.2,2226.1,0.538]
[1625323439669,1.0,2227.1,2226.1,0.538]
[1625323440519,1.0,2226.9,2226.1,0.538]
[1625323441122,1.0,2226.6,2226.1,0.538]
[1625323441277,8.14484,2226.2,2226.1,0.538]
[1625323458385,7.14484,2226.2,2226.1,0.538]
[1625323458687,8.14484,2226.2,2226.1,0.538]
[1625323459138,9.04754,2226.2,2226.1,0.538]
[1625323459337,8.14484,2226.2,2226.1,0.538]
[1625323459488,8.14484,2226.2,2226.1,2.74327]
[1625323460037,7.14484,2226.2,2226.1,2.74327]
[1625323460238,8.14484,2226.2,2226.1,2.74327]
[1625323460539,7.14484,2226.2,2226.1,2.74327]
[1625323462302,4.41054,2226.2,2226.1,5.59457]
[1625323463254,1.0,2226.3,2226.1,5.59457]
[1625323463556,1.0,2226.3,2226.2,2.20527]
[1625323463656,2.20527,2226.7,2226.2,2.20527]
[1625323463810,1.0,2226.6,2226.2,2.20527]
[1625323464310,3.51618091,2226.9,2226.2,2.20527]
[1625323464507,2.20527,2226.9,2226.2,2.20527]
[1625323464856,1.0,2226.8,2226.2,2.20527]
[1625323465610,2.20527,2226.6,2226.5,2.20527]
[1625323467773,3.20527,2226.6,2226.5,2.20527]
[1625323468228,2.20527,2226.6,2226.5,2.20527]
[1625323469782,3.20527,2226.6,2226.5,2.20527]
[1625323472739,2.20527,2226.6,2226.5,2.20527]
[1625323472941,3.20527,2226.6,2226.5,2.20527]
[1625323473241,2.20527,2226.6,2226.5,2.20527]
[1625323474044,1.0,2226.8,2226.5,2.20527]
[1625323475758,1.0,2226.8,2226.6,2.20527]
[1625323482485,2.20527,2226.9,2226.6,2.20527]
[1625323483742,2.20527,2226.9,2226.8,2.20527]
[1625323483889,2.20527,2226.9,2226.8,5.09107]
[1625323485595,2.20527,2227.3,2226.8,5.09107]
[1625323485747,2.20527,2227.3,2227.2,2.20527]
[1625323488308,3.20527,2227.3,2226.5,1.32456499]
[1625323488613,1.0,2227.1,2226.5,1.32456499]
[1625323488715,2.9664,2227.1,2226.5,1.32456499]
[1625323488813,1.30929892,2227.0,2226.1,0.538]
[1625323488962,1.0,2226.9,2226.1,0.538]
[1625323489762,4.41054,2226.2,2226.1,0.0001]
[1625323489862,1.0,2226.1,2225.7,1.32433365]
[1625323490463,1.0,2226.1,2225.0,6.44352978]
[1625323490464,1.0,2226.1,2225.0,2.20527]
[1625323491816,3.20527,2225.6,2225.5,2.20527]
[1625323491918,6.66317,2225.6,2225.5,2.20527]
[1625323493823,8.86844,2225.6,2225.5,2.20527]
[1625323497782,8.86844,2225.6,2225.0,2.20527]
[1625323497883,3.20527,2225.2,2224.7,1.32380031]
[1625323498284,3.20527,2225.2,2224.6,2.20527]
[1625323499841,4.41054,2224.7,2224.6,2.20527]
[1625323499940,7.93594,2224.7,2224.6,2.20527]
[1625323500090,7.93594,2224.7,2224.3,2.20527]
[1625323501042,7.93594,2224.7,2224.1,1.0]
[1625323501905,4.41054,2224.2,2224.1,1.0]
[1625323502006,8.61264,2224.2,2224.1,1.0]
[1625323502258,8.61264,2224.2,2224.1,0.0001]
[1625323503610,7.61264,2224.2,2224.1,0.0001]
[1625323505610,3.2021,2224.2,2224.1,0.0001]
[1625323505712,1.0,2225.0,2224.1,0.0001]
[1625323505866,1.0,2225.0,2224.1,2.2728]
[1625323505960,2.20527,2224.8,2224.6,2.20527]
[1625323507864,1.29968499,2226.1,2224.6,4.85177]
[1625323508025,2.20527,2225.5,2225.4,5.15027]
[1625323510121,1.0,2225.6,2225.4,5.15027]
[1625323510770,1.0,2225.6,2225.4,2.945]
[1625323510871,1.0,2225.6,2225.1,2.20527]
[1625323511321,2.4054,2225.7,2225.1,2.20527]
[1625323511422,2.20527,2225.8,2225.1,2.20527]
[1625323511573,3.20527,2225.8,2225.1,5.30757]
[1625323511925,5.41054,2225.8,2225.7,2.20527]
[1625323512676,4.41054,2225.8,2225.7,2.20527]
[1625323512776,4.41054,2225.8,2225.7,5.49367]
[1625323513327,5.41054,2225.8,2225.7,5.49367]
[1625323515490,5.41054,2225.8,2225.7,3.2884]
[1625323515589,5.41054,2225.8,2225.1,2.20527]
[1625323515942,2.20527,2225.2,2225.1,4.41054]
[1625323535526,1.0,2225.9,2225.1,4.41054]
[1625323536126,2.20527,2225.7,2225.5,2.20527]